[Event "French-ch U12-U14 2024"]
[Site "Agen"]
[Date "2024.04.15"]
[Round "2.2"]
[White "Alcantara, Levanah"]
[Black "Carissan, Alice"]
[Result "1-0"]
[ECO "D20"]
[WhiteElo "1756"]
[BlackElo "1476"]
[Annotator "NA RC"]
[PlyCount "63"]
[EventDate "2024.04.14"]
[EventType "swiss"]
[EventCountry "FRA"]
[SourceTitle "playchess.com"]
[Source "ChessBase"]
[SourceQuality "1"]
[TimeControl "5400+30"]

1. d4 {[%emt 0:04:52]} d5 {[%emt 0:00:04]} 2. c4 {[%emt 0:00:09]} dxc4 {[%emt 0:00:11]} 3. Nc3 {[%emt 0:00:26]} c5 {[%emt 0:01:51]} 4. e3 {[%emt 0:01:44]} Nc6 {[%emt 0:02:01]} 5. d5 {[%emt 0:05:21]} Ne5 {[%emt 0:03:34]} 6. Bxc4 {[%emt 0:04:42]} Nxc4 {[%emt 0:08:18]} 7. Qa4+ {[%emt 0:00:09]} Bd7 {[%emt 0:02:16]} 8. Qxc4 {[%emt 0:00:08]} e6 {[%emt 0:01:15]} 9. e4 {[%emt 0:02:20]} Nf6 {[%emt 0:01:59]} 10. Nf3 {[%emt 0:04:04]} exd5 {[%emt 0:09:53]} 11. exd5 {[%emt 0:01:53]} Be7 {[%emt 0:04:57]} 12. O-O {[%emt 0:00:47]} O-O {[%emt 0:00:35]} 13. Bf4 {[%emt 0:01:34]} Qb6 {[%emt 0:09:01]} 14. Rfe1 {[%emt 0:06:40]} Bd6 {[%emt 0:03:12]} 15. Bg5 {[%emt 0:02:31]} Ne8 {[%emt 0:05:30]} 16. a4 {[%emt 0:05:38]} a5 {[%emt 0:01:27]} 17. Ne4 {[%emt 0:06:14]} Bc7 {[%emt 0:05:37]} 18. Be7 {[%emt 0:01:11]} f5 {[%emt 0:08:25]} 19. d6+ {[%emt 0:11:14]} Rf7 {[%emt 0:03:24]} 20. Neg5 {[%emt 0:00:53]} Nxd6 {[%emt 0:07:08]} 21. Bxd6 {[%emt 0:00:36]} Qxd6 {[%emt 0:00:15]} 22. Nxf7 {[%emt 0:00:54]} Qf6 {[%emt 0:01:23]} 23. Rad1 {[%emt 0:02:59]} Bc6 {[%emt 0:04:39]} 24. N7e5+ {[%emt 0:04:08]} Kh8 {[%emt 0:00:58]} 25. Nxc6 {[%emt 0:00:21]} Qxc6 {[%emt 0:00:29]} 26. Ne5 {[%emt 0:00:50]} Qf6 {[%emt 0:00:35]} 27. Nf7+ {[%emt 0:00:35]} Kg8 {[%emt 0:00:45]} 28. Nd8+ {[%emt 0:00:07]} Kf8 {[%emt 0:00:48]} 29. Qxc5+ {[%emt 0:00:36]} Bd6 {[%emt 0:01:09]} 30. Rxd6 {[%emt 0:01:04]} Qxd8 {[%emt 0:01:48]} 31. Rxd8+ {[%emt 0:00:43]} Kf7 {[%emt 0:00:09]} 32. Qxf5# {[%emt 0:00:07]} 1-0

[Event "French-ch U12-U14 2024"]
[Site "Agen"]
[Date "2024.04.15"]
[Round "2.4"]
[White "Anseeuw, Emma"]
[Black "Ben Salah, Ines"]
[Result "1-0"]
[ECO "D00"]
[WhiteElo "1667"]
[BlackElo "1473"]
[Annotator "NA RC"]
[PlyCount "57"]
[EventDate "2024.04.14"]
[EventType "swiss"]
[EventCountry "FRA"]
[SourceTitle "playchess.com"]
[Source "ChessBase"]
[SourceQuality "1"]
[TimeControl "5400+30"]

1. d4 {[%emt 0:00:02]} d5 {[%emt 0:00:05]} 2. Bf4 {[%emt 0:00:07]} e6 {[%emt 0:00:19]} 3. e3 {[%emt 0:00:07]} Bd6 {[%emt 0:00:26]} 4. Bg3 {[%emt 0:00:12]} a6 {[%emt 0:05:16]} 5. Nf3 {[%emt 0:00:25]} Nf6 {[%emt 0:00:18]} 6. Nbd2 {[%emt 0:00:33]} c5 {[%emt 0:02:32]} 7. c3 {[%emt 0:00:16]} Qc7 {[%emt 0:01:06]} 8. Bd3 {[%emt 0:01:09]} c4 {[%emt 0:00:51]} 9. Bb1 {[%emt 0:00:33]} b5 {[%emt 0:02:32]} 10. a3 {[%emt 0:00:37]} Nbd7 {[%emt 0:08:18]} 11. e4 {[%emt 0:02:38]} Bxg3 {[%emt 0:05:06]} 12. hxg3 {[%emt 0:00:41]} dxe4 {[%emt 0:02:28]} 13. Nxe4 {[%emt 0:00:42]} Bb7 {[%emt 0:01:51]} 14. Qe2 {[%emt 0:04:32]} Qc6 {[%emt 0:04:34]} 15. Ned2 {[%emt 0:02:21]} h6 {[%emt 0:04:00]} 16. Bc2 {[%emt 0:07:27]} O-O-O {[%emt 0:11:01]} 17. a4 {[%emt 0:03:03]} Kc7 {[%emt 0:06:40]} 18. Rg1 {[%emt 0:22:33]} Rhe8 {[%emt 0:02:55]} 19. Ne5 {[%emt 0:06:25]} Nxe5 {[%emt 0:07:20]} 20. Qxe5+ {[%emt 0:05:37]} Qd6 {[%emt 0:01:55]} 21. axb5 {[%emt 0:08:02]} Ra8 {[%emt 0:16:48]} 22. Qxd6+ {[%emt 0:02:02]} Kxd6 {[%emt 0:00:44]} 23. Nxc4+ {[%emt 0:00:06]} Kc7 {[%emt 0:00:57]} 24. b6+ {[%emt 0:01:14]} Kd8 {[%emt 0:03:58]} 25. Nd6 {[%emt 0:01:28]} Re7 {[%emt 0:01:09]} 26. c4 {[%emt 0:01:04]} Bc6 {[%emt 0:05:22]} 27. Ba4 {[%emt 0:01:08]} Bb7 {[%emt 0:00:13]} 28. Nxb7+ {[%emt 0:00:10]} Rxb7 {[%emt 0:05:00]} 29. Bc6 {[%emt 0:00:07]} 1-0

[Event "French-ch U12-U14 2024"]
[Site "Agen"]
[Date "2024.04.15"]
[Round "2.7"]
[White "Bat, Sodcetsen"]
[Black "Martinez, Julien"]
[Result "1-0"]
[ECO "B18"]
[WhiteElo "2012"]
[BlackElo "1747"]
[Annotator "NA RC"]
[PlyCount "91"]
[EventDate "2024.04.14"]
[EventType "swiss"]
[EventCountry "FRA"]
[SourceTitle "playchess.com"]
[Source "ChessBase"]
[SourceQuality "1"]
[TimeControl "5400+30"]

1. e4 {[%emt 0:00:03]} c6 {[%emt 0:00:02]} 2. d4 {[%emt 0:00:08]} d5 {[%emt 0:00:05]} 3. Nc3 {[%emt 0:00:08]} dxe4 {[%emt 0:00:08]} 4. Nxe4 {[%emt 0:00:20]} Bf5 {[%emt 0:00:16]} 5. Ng3 {[%emt 0:00:09]} Bg6 {[%emt 0:00:05]} 6. Nh3 {[%emt 0:00:07]} h6 {[%emt 0:01:05] B18: Classical Caro-Kann: 4...Bf5 sidelines.} 7. Nf4 {[%emt 0:01:43]} Bh7 {[%emt 0:00:37]} 8. c3 {[%emt 0:00:59]} Nf6 {[%emt 0:01:57]} 9. Bd3 {[%emt 0:01:09]} Bxd3 {[%emt 0:00:19]} 10. Qxd3 {[%emt 0:00:08]} e6 {[%emt 0:02:45]} 11. O-O {[%emt 0:01:22]} Be7 {[%emt 0:00:55]} 12. Nfh5 {[%emt 0:03:29]} O-O {[%emt 0:08:53]} 13. Nxf6+ {[%emt 0:03:05]} Bxf6 {[%emt 0:02:27]} 14. Ne4 {[%emt 0:00:28]} Nd7 {[%emt 0:01:22]} 15. Qg3 {[%emt 0:01:32]} Kh7 {[%emt 0:01:14]} 16. Bf4 {[%emt 0:00:58]} Nb6 {[%emt 0:01:59]} 17. Bc7 {[%emt 0:01:33]} Qd5 {[%emt 0:06:16]} 18. Qd3 {[%emt 0:10:58]} Kh8 {[%emt 0:02:09]} 19. Nxf6 {[%emt 0:08:10]} gxf6 {[%emt 0:00:08]} 20. Qh3 {[%emt 0:00:09]} Qg5 {[%emt 0:03:56]} 21. f4 {[%emt 0:01:59]} Qg7 {[%emt 0:00:22]} 22. Bxb6 {[%emt 0:01:20]} axb6 {[%emt 0:00:10]} 23. f5 {[%emt 0:00:27]} e5 {[%emt 0:01:19]} 24. dxe5 {[%emt 0:10:23]} fxe5 {[%emt 0:00:37]} 25. f6 {[%emt 0:01:28]} Qh7 {[%emt 0:02:30]} (25... Qg6 $11 {was preferrable.}) 26. Rf5 {[%emt 0:03:00]} Rg8 {[%emt 0:05:37]} 27. Rxe5 {[%emt 0:06:49]} Rg6 {[%emt 0:02:46]} 28. Qf3 {[%emt 0:01:33]} Rg5 {[%emt 0:05:38]} (28... Rgg8 $16 {is a better defense.}) 29. Rxg5 {[%emt 0:01:32]} hxg5 {[%emt 0:00:10]} 30. Rd1 {[%emt 0:00:40]} Kg8 {[%emt 0:02:59]} 31. a3 {[%emt 0:01:35]} Re8 {[%emt 0:02:31]} 32. Qf2 {[%emt 0:09:46]} b5 {[%emt 0:06:29] [#]} 33. h3 $16 {[%emt 0:01:23]} Qg6 {[%emt 0:02:11]} 34. h4 {[%emt 0:04:25]} Qh5 {[%emt 0:03:59]} 35. Rd4 {[%emt 0:05:41]} Qe2 {[%emt 0:14:03]} 36. hxg5 {[%emt 0:06:33]} c5 {[%emt 0:02:11]} 37. Rd2 {[%emt 0:13:48]} Qe5 {[%emt 0:01:18]} 38. g6 {[%emt 0:00:00]} Qh5 {[%emt 0:01:25]} 39. gxf7+ {[%emt 0:00:00]} Qxf7 {[%emt 0:00:43]} 40. Qg3+ {[%emt 0:00:00]} Kf8 {[%emt 0:01:50]} 41. Qg7+ {[%emt 0:00:00]} Qxg7 {[%emt 0:00:11]} 42. fxg7+ {[%emt 0:00:00]} Kxg7 {[%emt 0:00:13]} 43. Rd7+ {[%emt 0:00:00]} Kf6 {[%emt 0:01:51]} 44. Rxb7 {[%emt 0:00:00]} Kf5 {[%emt 0:00:13]} 45. Rxb5 {[%emt 0:00:00]} Kg4 {[%emt 0:00:17]} 46. Kf2 {[%emt 0:00:00]} 1-0

[Event "French-ch U12-U14 2024"]
[Site "Agen"]
[Date "2024.04.15"]
[Round "2.10"]
[White "Trouve, Ethan"]
[Black "Bocquenet-Drouode, Hugo"]
[Result "0-1"]
[ECO "D00"]
[WhiteElo "1739"]
[BlackElo "1974"]
[Annotator "TA"]
[PlyCount "70"]
[EventDate "2024.04.14"]
[EventType "swiss"]
[EventCountry "FRA"]
[SourceTitle "playchess.com"]
[Source "ChessBase"]
[SourceQuality "1"]
[TimeControl "5400+30"]

{[%evp 13,70,-10,-10,-8,-10,-4,13,8,39,3,7,-10,54,46,62,31,77,0,0,0,0,0,0,7,13,0,33,42,18,-14,-14,-14,-14,-16,-11,-41,-45,-64,-69,-101,0,-6,0,-106,-99,-94,-104,-181,-154,-215,-206,-418,-344,-443,-441,-1038,-985,-981,-918]} 1. d4 {[%emt 0:00:01]} d5 {[%emt 0:00:04]} 2. e3 {[%emt 0:00:13]} Nf6 {[%emt 0:00:21]} 3. Bd3 {[%emt 0:00:04]} c5 {[%emt 0:02:17]} 4. c3 {[%emt 0:00:02]} e6 {[%emt 0:01:58]} 5. f4 {[%emt 0:00:24]} Bd6 {[%emt 0:02:05]} 6. Nf3 {[%emt 0:00:09]} Nc6 {[%emt 0:06:09]} 7. O-O {[%emt 0:00:54]} O-O {[%emt 0:03:05]} 8. Ne5 {[%emt 0:00:32]} Ne4 {[%emt 0:03:06]} 9. Nd2 {[%emt 0:04:00]} Nxd2 {[%emt 0:03:22]} 10. Bxd2 {[%emt 0:00:13] The position is equal.} f6 {[%emt 0:00:27]} (10... f5 {simplifies} 11. b3 Nxe5 12. dxe5 Be7) 11. Qh5 {[%emt 0:03:54][%csl Gd3][%cal Rh5h7]} f5 {[%emt 0:02:19]} 12. g4 {[%emt 0:02:35]} Bxe5 {[%emt 0:02:35]} (12... Nxe5 $11 13. fxe5 g6) 13. fxe5 $14 {[%emt 0:00:12]} g6 {[%emt 0:00:27]} 14. Qh3 {[%emt 0:01:30]} Qg5 {[%emt 0:02:17]} (14... Ne7 $14) 15. Qg2 {[%emt 0:01:17]} ({Inferior is} 15. dxc5 Nxe5 16. Be2 Bd7 $15 (16... Nxg4 17. Qg3 $11)) (15. Rf4 $16) 15... Qxg4 $11 {[%emt 0:24:05]} 16. Qxg4 {[%emt 0:00:07]} fxg4 {[%emt 0:00:06]} 17. Rxf8+ {[%emt 0:00:03]} Kxf8 {[%emt 0:00:08]} 18. Rf1+ {[%emt 0:00:27]} Kg7 {[%emt 0:00:05]} 19. Rf4 {[%emt 0:00:41][%mdl 1024] White has compensation.} h5 {[%emt 0:00:03]} 20. Rf6 {[%emt 1:23:12]} (20. dxc5 Nxe5 21. Be2 Nf3+ 22. Bxf3 gxf3 $15) 20... Ne7 {[%emt 0:00:27]} 21. e4 {[%emt 0:00:00]} c4 {[%emt 0:07:32]} 22. Bc2 {[%emt 0:00:00]} Ng8 {[%emt 0:02:47]} 23. Rf2 {[%emt 0:00:00]} Bd7 {[%emt 0:01:12] Wards off Ba4} 24. Bg5 {[%emt 0:00:00]} Bc6 {[%emt 0:03:32]} 25. exd5 {[%emt 0:00:00]} Bxd5 {[%emt 0:00:31]} 26. Bf6+ {[%emt 0:00:00] [#]} Kh7 {[%emt 0:01:58]} ({Much weaker is} 26... Nxf6 $6 27. Rxf6 a5 28. Bxg6 $11 (28. Rxg6+ Kf8 $16)) ({Better is} 26... Kh6 $1 $17 {White should prevent ...Bf3.} 27. Bh4 g5) 27. Bg5 {[%emt 0:00:00]} Nh6 {[%emt 0:00:27] Prevents Rf7+} 28. Bxh6 {[%emt 0:00:00]} (28. Rf6 $11 Nf5 29. Kf2) 28... Kxh6 {[%emt 0:00:12][%mdl 4096] Endgame. KRB-KRB} 29. Rf6 {[%emt 0:00:00]} Rg8 {[%emt 0:00:04]} 30. b3 {[%emt 0:00:00]} (30. b4 $17 {was necessary.}) 30... b5 $19 {[%emt 0:01:27]} 31. b4 {[%emt 0:00:00]} (31. bxc4 $17 Bxc4 (31... bxc4 $2 32. h4 $19) 32. Bb3 Bxb3 33. axb3) 31... Kg5 {[%emt 0:02:25] White must now prevent ...Ra8.} 32. Bb1 $2 {[%emt 0:00:00]} (32. Kf2 {might work better.}) 32... h4 {[%emt 0:01:36]} 33. Kf2 {[%emt 0:00:00]} g3+ {[%emt 0:00:26] Black is clearly winning.} 34. hxg3 {[%emt 0:00:00]} (34. Kg1 $142) 34... h3 {[%emt 0:00:06] ( -> ...h2)} 35. Kg1 {[%emt 0:00:00] [#]} h2+ $1 {[%emt 0:00:08][%mdl 512] Weighted Error Value: White=0.52/Black=0.21 (precise) .  Mistake:       	White=6     	Black=3      Inaccurate:     	White=5     	Black=2      OK:         	White=6     	Black=7      Best:        	White=1     	Black=5} 0-1

[Event "French-ch U12-U14 2024"]
[Site "Agen"]
[Date "2024.04.15"]
[Round "2.11"]
[White "Schlupp, Emma"]
[Black "Bernard, Ines"]
[Result "0-1"]
[ECO "D02"]
[WhiteElo "1600"]
[BlackElo "1981"]
[Annotator "NA RC"]
[PlyCount "100"]
[EventDate "2024.04.14"]
[EventType "swiss"]
[EventCountry "FRA"]
[SourceTitle "playchess.com"]
[Source "ChessBase"]
[SourceQuality "1"]
[TimeControl "5400+30"]

1. d4 {[%emt 0:00:03]} d5 {[%emt 0:00:01]} 2. Nf3 {[%emt 0:00:24]} Nf6 {[%emt 0:00:05]} 3. Bf4 {[%emt 0:00:10]} e6 {[%emt 0:00:25]} 4. e3 {[%emt 0:00:28]} Bd6 {[%emt 0:00:30]} 5. Bxd6 {[%emt 0:00:50]} Qxd6 {[%emt 0:00:34]} 6. Bd3 {[%emt 0:01:37] D02: 1 d4 d5 2 Nf3 sidelines, including 2...Nf6 3 g3 and 2...Nf6 3 Bf4.} Qb4+ {[%emt 0:02:01]} 7. Nbd2 {[%emt 0:05:36]} Qxb2 {[%emt 0:00:52]} 8. O-O {[%emt 0:03:00]} Nbd7 {[%emt 0:02:42]} 9. Re1 {[%emt 0:09:22]} O-O {[%emt 0:02:15]} 10. Nf1 {[%emt 0:07:09]} b6 {[%emt 0:03:01]} 11. Ng3 {[%emt 0:07:38]} Bb7 {[%emt 0:01:11]} 12. Nd2 {[%emt 0:07:30]} ({White should play} 12. a4 Qb4 13. c3) 12... Qa3 {[%emt 0:04:25]} 13. Qe2 {[%emt 0:09:36]} c5 {[%emt 0:00:50]} 14. c4 {[%emt 0:04:10]} cxd4 {[%emt 0:01:26]} 15. exd4 {[%emt 0:00:28]} Rfd8 {[%emt 0:02:17]} 16. Qf3 {[%emt 0:03:37]} Qb4 {[%emt 0:03:12]} 17. Qe3 {[%emt 0:06:45]} dxc4 {[%emt 0:07:17]} 18. Nxc4 {[%emt 0:03:53]} Nf8 {[%emt 0:01:58]} 19. Rab1 {[%emt 0:02:36]} Qa4 {[%emt 0:01:22]} 20. a3 {[%emt 0:03:28]} Rac8 {[%emt 0:02:47]} 21. Rb4 $2 {[%emt 0:02:38]} (21. Rbc1 {was necessary.}) 21... Qc6 {[%emt 0:00:40]} 22. Ne4 {[%emt 0:01:50]} (22. Qf3 $142) 22... Nxe4 {[%emt 0:01:24]} 23. Ne5 {[%emt 0:01:52]} Qc3 {[%emt 0:02:26]} 24. f3 {[%emt 0:02:42]} Nf6 {[%emt 0:01:42]} 25. Nxf7 {[%emt 0:01:02]} Kxf7 {[%emt 0:02:14]} 26. Rb3 {[%emt 0:00:53]} Qxd4 {[%emt 0:00:47]} 27. Qxd4 {[%emt 0:01:07]} Rxd4 {[%emt 0:00:02]} 28. Rd1 {[%emt 0:01:16]} Rcd8 {[%emt 0:00:40]} 29. Rc3 {[%emt 0:01:37]} Ba6 {[%emt 0:00:25]} 30. Rc7+ {[%emt 0:01:53]} Kg8 {[%emt 0:00:11]} 31. Bxa6 {[%emt 0:01:24]} Rxd1+ {[%emt 0:00:06]} 32. Kf2 {[%emt 0:00:22]} R8d7 {[%emt 0:01:40]} (32... R8d2+ $142 33. Be2 Ra2 (33... Rxe2+ $2 34. Kxe2 Rd7 35. Rc2 $19) (33... a6 $2 34. Rc3 $19) 34. Rc3 Nd5 (34... Rxe2+ $2 35. Kxe2 Ra1 36. Rd3 $19) 35. Rc4 Rdd2 (35... Rxe2+ $2 36. Kxe2 Ra1 37. a4 $19) 36. Re4 Nc3 (36... Rxa3 $2 37. h3 $19) 37. Rg4 Rxe2+ (37... Nxe2 $2 38. Ke3 $19) 38. Kg3 Nd5 (38... Rxg2+ {leads to mate.} 39. Kf4 Rge2 40. Kg5 Nd5 41. h3 Ng6 42. f4 Rxa3 43. h4 Ngxf4 44. Rg1 Nh3+ 45. Kh5 Nf6#) 39. Kh3 Ng6 (39... Rxa3 $2 40. Rd4 $19) 40. Rxg6 hxg6 (40... Nf4+ {is a self mate.} 41. Kg4 Nxg6 42. g3 Rxh2 43. f4 Rxa3 44. f5 h5+ 45. Kg5 Rxg3#) 41. g3 Rxh2+ 42. Kg4 Rxa3 43. Kg5 Rxf3 (43... Rh5+ $2 44. Kxg6 Re5 45. g4 Nf4#) 44. g4 Rg3 45. Kxg6 Rxg4#) 33. Rc2 {[%emt 0:00:27]} R7d2+ {[%emt 0:00:50]} 34. Rxd2 {[%emt 0:00:11]} Rxd2+ {[%emt 0:00:08]} 35. Ke1 {[%emt 0:00:13]} Rxg2 $19 {[%emt 0:00:07]} 36. Be2 {[%emt 0:00:27]} Ng6 {[%emt 0:00:12]} 37. h3 {[%emt 0:00:39]} Nf4 {[%emt 0:00:14]} 38. Bf1 {[%emt 0:00:18]} Rb2 {[%emt 0:00:11]} 39. h4 {[%emt 0:00:36]} N6d5 {[%emt 0:00:21]} 40. a4 {[%emt 0:00:21]} Ne3 {[%emt 0:01:02]} 41. h5 {[%emt 0:00:33]} Rb1+ {[%emt 0:01:09]} 42. Kf2 {[%emt 0:00:41]} Nxf1 {[%emt 0:00:38]} 43. h6 {[%emt 0:00:22]} Nd5 {[%emt 0:00:14]} 44. hxg7 {[%emt 0:00:49]} Kxg7 {[%emt 0:00:07]} 45. a5 {[%emt 0:00:13]} Kf6 {[%emt 0:00:33]} 46. axb6 {[%emt 0:00:13]} axb6 {[%emt 0:00:04]} 47. f4 {[%emt 0:01:15]} Kf5 {[%emt 0:00:18]} 48. Kf3 {[%emt 0:00:36]} Nxf4 {[%emt 0:00:13]} 49. Kf2 {[%emt 0:00:22]} Kg4 {[%emt 0:00:08]} 50. Kg1 {[%emt 0:00:19]} Kg3 {[%emt 0:57:33]} 0-1

[Event "French-ch U12-U14 2024"]
[Site "Agen"]
[Date "2024.04.15"]
[Round "2.14"]
[White "Skrypnyk, Anna"]
[Black "Castagnerol, Cerise"]
[Result "0-1"]
[ECO "C01"]
[WhiteElo "1578"]
[BlackElo "1755"]
[Annotator "NA RC"]
[PlyCount "92"]
[EventDate "2024.04.14"]
[EventType "swiss"]
[EventCountry "FRA"]
[SourceTitle "playchess.com"]
[Source "ChessBase"]
[SourceQuality "1"]
[TimeControl "5400+30"]

1. e4 {[%emt 0:00:11]} e6 {[%emt 0:00:09]} 2. Nc3 {[%emt 0:00:40]} d5 {[%emt 0:00:20]} 3. exd5 {[%emt 0:00:18]} exd5 {[%emt 0:00:02]} 4. d4 {[%emt 0:00:14]} Nf6 {[%emt 0:00:39]} 5. Nf3 {[%emt 0:01:07]} Be7 {[%emt 0:01:00]} 6. Bf4 {[%emt 0:02:35]} O-O {[%emt 0:02:58]} 7. Bd3 {[%emt 0:03:41]} Bg4 {[%emt 0:02:45]} 8. Qd2 {[%emt 0:00:47]} Nbd7 {[%emt 0:02:43]} 9. h3 {[%emt 0:01:40]} Bh5 {[%emt 0:06:12]} 10. g4 {[%emt 0:02:05]} Bg6 {[%emt 0:00:06]} 11. O-O-O {[%emt 0:04:59]} Bb4 {[%emt 0:03:28]} 12. Bxg6 {[%emt 0:03:32]} fxg6 {[%emt 0:03:28]} 13. Qd3 {[%emt 0:00:36]} Bxc3 {[%emt 0:18:10]} 14. Qxc3 {[%emt 0:01:07]} Ne4 {[%emt 0:00:26]} 15. Qe3 {[%emt 0:02:31]} Qf6 {[%emt 0:05:28]} 16. Ne5 {[%emt 0:04:43]} Nxe5 {[%emt 0:01:33]} 17. Bxe5 {[%emt 0:00:21]} Qxf2 {[%emt 0:00:26]} 18. Qb3 {[%emt 0:03:04]} c6 {[%emt 0:04:56]} 19. Qxb7 {[%emt 0:01:19]} Rac8 {[%emt 0:00:57]} 20. Qxa7 {[%emt 0:01:05]} Rf7 {[%emt 0:07:27]} 21. Qa6 {[%emt 0:02:01]} Rff8 {[%emt 0:02:07]} 22. Rhf1 {[%emt 0:02:17]} Qe3+ {[%emt 0:01:01]} 23. Kb1 {[%emt 0:05:12]} Nd2+ {[%emt 0:02:13]} 24. Ka1 {[%emt 0:06:32]} Nc4 {[%emt 0:14:57]} 25. Rxf8+ {[%emt 0:06:27]} Rxf8 {[%emt 0:00:01]} 26. Qxc6 {[%emt 0:01:51]} Qf3 {[%emt 0:00:42]} 27. a3 {[%emt 0:02:44]} Qxd1+ {[%emt 0:02:40]} 28. Ka2 {[%emt 0:00:12]} Nxe5 {[%emt 0:02:32]} 29. Qxd5+ {[%emt 0:01:41]} Nf7 {[%emt 0:00:10]} 30. Qc4 {[%emt 0:01:07]} Rd8 {[%emt 0:00:50]} 31. c3 {[%emt 0:00:46]} Rb8 {[%emt 0:00:52]} 32. b3 {[%emt 0:04:11]} Qc2+ {[%emt 0:00:40]} 33. Ka1 {[%emt 0:00:42]} Re8 {[%emt 0:00:48]} 34. Qf1 {[%emt 0:00:40]} Re2 {[%emt 0:00:10]} 35. Qxe2 {[%emt 0:01:39]} Qxe2 {[%emt 0:00:01]} 36. d5 {[%emt 0:00:10]} Qc2 {[%emt 0:00:35]} 37. g5 {[%emt 0:00:19]} Qxb3 {[%emt 0:00:21]} 38. c4 {[%emt 0:00:37]} Qxa3+ {[%emt 0:00:12]} 39. Kb1 {[%emt 0:00:05]} Qb4+ {[%emt 0:00:06]} 40. Ka1 {[%emt 0:00:08]} Qxc4 {[%emt 0:00:08]} 41. h4 {[%emt 0:00:40]} Qxd5 {[%emt 0:00:22]} 42. Kb2 {[%emt 0:00:10]} Qd3 {[%emt 0:00:20]} 43. Ka1 {[%emt 0:00:40]} Qd2 {[%emt 0:00:19]} 44. Kb1 {[%emt 0:01:00]} Ne5 {[%emt 0:00:18]} 45. h5 {[%emt 0:00:46]} Nc4 {[%emt 0:00:16]} 46. Ka1 {[%emt 0:00:04]} Qb2# {[%emt 0:00:07]} 0-1

[Event "French-ch U12-U14 2024"]
[Site "Agen"]
[Date "2024.04.15"]
[Round "2.15"]
[White "Maret, Anna"]
[Black "Satyanarayan, Shraddha"]
[Result "1-0"]
[ECO "C91"]
[WhiteElo "1749"]
[BlackElo "1594"]
[Annotator "NA RC"]
[PlyCount "99"]
[EventDate "2024.04.14"]
[EventType "swiss"]
[EventCountry "FRA"]
[SourceTitle "playchess.com"]
[Source "ChessBase"]
[SourceQuality "1"]
[TimeControl "5400+30"]

1. e4 {[%emt 0:05:21]} e5 {[%emt 0:00:06]} 2. Nf3 {[%emt 0:00:09]} Nc6 {[%emt 0:00:04]} 3. Bb5 {[%emt 0:00:20]} a6 {[%emt 0:00:06]} 4. Ba4 {[%emt 0:00:09]} Nf6 {[%emt 0:00:07]} 5. O-O {[%emt 0:00:50]} Be7 {[%emt 0:00:28]} 6. Re1 {[%emt 0:01:12]} b5 {[%emt 0:00:37]} 7. Bb3 {[%emt 0:00:08]} O-O {[%emt 0:00:31]} 8. d4 {[%emt 0:11:44]} d6 {[%emt 0:06:38]} 9. c3 {[%emt 0:12:24]} Bg4 {[%emt 0:08:41]} 10. d5 {[%emt 0:04:52]} Na5 {[%emt 0:00:37]} 11. Bc2 {[%emt 0:00:09]} Qd7 {[%emt 0:04:03]} 12. Nbd2 {[%emt 0:05:13]} c6 {[%emt 0:06:20]} 13. Nf1 {[%emt 0:15:43]} Nc4 {[%emt 0:20:21]} 14. b3 {[%emt 0:12:12]} Nb6 {[%emt 0:00:38]} 15. Be3 {[%emt 0:00:11]} Rab8 {[%emt 0:01:45]} 16. Bxb6 {[%emt 0:02:48]} Rxb6 {[%emt 0:00:07]} 17. Ne3 {[%emt 0:00:23]} Bh5 {[%emt 0:05:39]} 18. c4 {[%emt 0:05:58]} Bg6 {[%emt 0:04:15]} 19. Nf5 {[%emt 0:06:44]} Bxf5 {[%emt 0:04:14]} 20. exf5 {[%emt 0:00:15]} cxd5 {[%emt 0:00:33]} 21. cxd5 {[%emt 0:00:33]} Rc8 {[%emt 0:00:28]} 22. Rc1 {[%emt 0:00:31]} Rc5 {[%emt 0:01:01]} 23. Be4 {[%emt 0:06:40]} Nxe4 {[%emt 0:01:08]} 24. Rxe4 {[%emt 0:00:27]} Qxf5 {[%emt 0:00:19]} 25. Rxc5 {[%emt 0:02:04]} Qxe4 {[%emt 0:01:02]} 26. Rc7 {[%emt 0:00:34]} Bf8 {[%emt 0:03:18]} 27. Ng5 {[%emt 0:00:57]} Qh4 {[%emt 0:01:24]} 28. Nxf7 {[%emt 0:01:40]} e4 {[%emt 0:03:53]} 29. Qd4 {[%emt 0:01:23]} Rb8 {[%emt 0:00:59]} 30. g3 {[%emt 0:01:59]} Qg4 {[%emt 0:02:43]} 31. h4 {[%emt 0:01:29]} Rc8 {[%emt 0:01:01]} 32. Rxc8 {[%emt 0:00:26]} Qxc8 {[%emt 0:00:02]} 33. Ng5 {[%emt 0:00:07]} Qc2 {[%emt 0:01:35]} 34. Qxe4 {[%emt 0:00:26]} Qxe4 {[%emt 0:00:49]} 35. Nxe4 {[%emt 0:00:06]} h6 {[%emt 0:00:34]} 36. Kg2 {[%emt 0:00:17]} Kf7 {[%emt 0:00:13]} 37. Kf3 {[%emt 0:00:04]} Ke7 {[%emt 0:00:13]} 38. Ke3 {[%emt 0:00:17]} Kd7 {[%emt 0:00:43]} 39. g4 {[%emt 0:00:42]} Be7 {[%emt 0:02:16]} 40. g5 {[%emt 0:00:05]} hxg5 {[%emt 0:01:27]} 41. Nxg5 {[%emt 0:00:10]} Bxg5+ {[%emt 0:00:23]} 42. hxg5 {[%emt 0:00:06]} g6 {[%emt 0:00:09]} 43. Ke4 {[%emt 0:00:04]} Ke7 {[%emt 0:01:06]} 44. f4 {[%emt 0:00:07]} Ke8 {[%emt 0:01:47]} 45. f5 {[%emt 0:00:09]} gxf5+ {[%emt 0:01:16]} 46. Kxf5 {[%emt 0:00:06]} Kf7 {[%emt 0:00:04]} 47. g6+ {[%emt 0:00:13]} Kg7 {[%emt 0:00:31]} 48. Ke6 {[%emt 0:00:11]} Kxg6 {[%emt 0:00:12]} 49. Kxd6 {[%emt 0:00:05]} Kf6 {[%emt 0:00:11]} 50. Kc7 {[%emt 0:00:06]} 1-0